Cogmind - Beta 9.1 *** ADVENTURER MODE // 2019.11.20 @ 16:35:42 Player: toad3k Result: Destroyed by G-34 Mercenary with Small Laser Performance ------------- Evolutions (1) 500 Regions Visited (3) 600 Robots Destroyed (54) 270 Value Destroyed (1451) 1451 Prototype IDs (3) 60 Alien Tech Used (0) 0 Bonus (94) 94 TOTAL SCORE: 2975 Bonus ------- High Alert Combat Kills 94 Cogmind --------- Core Integrity 0/400 Matter 295/300 Energy 61/100 System Corruption 1% Temperature Cool (6) Location -9/Storage Parts ------- Power (1) Propulsion (3) Utility (3) Small Storage Unit Hacking Suite Weapon (2) Hammer Inventory (6) Light Ion Engine Disposable Heat Sink Hacking Suite Light Assault Rifle Light Assault Rifle Shock Bomb Launcher Peak State ------------ Power Heavy Ion Engine Propulsion Light Treads Light Treads Aluminum Leg Utility Small Storage Unit Hacking Suite Hacking Suite Weapon Shock Maul Katana Inventory Light Ion Engine Disposable Heat Sink Hacking Suite Light Assault Rifle Light Assault Rifle Shock Bomb Launcher [Rating: 23] Favorites ----------- Power Cooled Ion Engine Engine Cooled Ion Engine Propulsion Aluminum Leg Treads Light Treads Leg Aluminum Leg Utility Hacking Suite Device Disposable Heat Sink Storage Small Storage Unit Processor Signal Interpreter Hackware Hacking Suite Weapon Mace Ballistic Gun Light Assault Rifle Launcher Shock Bomb Launcher Impact Weapon Mace Slashing Weapon Katana Build | -11 -10 -9 -9 ------- Run | Scr Mat Mat Sto Slots Evolved 2 | . . 2 . Power . | . . . . Propulsion 1 | . . 1 . Utility 1 | . . 1 . Weapon . | . . . . Parts Attached 42 | 6 6 15 15 Power 6 | 1 1 2 2 Engine 6 | 1 1 2 2 Core . | . . . . Reactor . | . . . . Propulsion 15 | 2 1 4 8 Treads 2 | . . . 2 Leg 13 | 2 1 4 6 Wheel . | . . . . Hover . | . . . . Flight . | . . . . Utility 6 | 1 2 3 . Device 2 | . 1 1 . Storage 1 | 1 . . . Processor 1 | . 1 . . Hackware 2 | . . 2 . Protection . | . . . . Artifact . | . . . . Weapon 15 | 2 2 6 5 Energy Gun . | . . . . Energy Cannon . | . . . . Ballistic Gun 3 | 2 . 1 . Ballistic Cannon . | . . . . Launcher 4 | . . 3 1 Special Weapon . | . . . . Impact Weapon 7 | . 2 2 3 Slashing Weapon 1 | . . . 1 Piercing Weapon . | . . . . Special Melee Weapon . | . . . . Unidentified Prototypes 3 | . . 1 2 Parts Lost 11 | . . 3 8 Power 1 | . . . 1 Propulsion 8 | . . 3 5 Utility 1 | . . . 1 Weapon 1 | . . . 1 Highest Loss Streak 6 | . . 2 6 Average Slot Usage (%) 94 | . 99 91 93 Engine 11 | . 14 11 10 Treads 1 | . . . 2 Leg 25 | . 28 25 25 Device 2 | . 12 . . Storage 11 | . 14 11 11 Hackware 17 | . . 21 21 Ballistic Gun 1 | . 10 . . Impact Weapon 17 | . 17 20 15 Slashing Weapon 2 | . . . 6 Naked Turns . | . . . . Heaviest Build 20 | 9 12 20 17 Greatest Support 40 | 20 20 30 40 Greatest Overweight (x) 6 | . . 6 2 Average Overweight (x) . | . . . . Largest Inventory Capacity 6 | 6 6 6 6 Average Capacity 5 | 5 6 6 6 Most Carried 6 | 2 6 6 6 Average Carried 5 | 1 3 5 6 Final Capacity 6 | 6 6 6 6 Final Carried 6 | 2 6 6 6 Class Distribution -------------------- 80% | Hacker-Mutant 19% | Mutant Dominant Class ---------------- Mutant | -10/Materials Hacker-Mutant | -9/Materials Hacker-Mutant | -9/Storage Resources | -11 -10 -9 -9 ----------- Run | Scr Mat Mat Sto Matter Collected 660 | 195 125 200 140 Remotely . | . . . . Salvage Created 2059 | . 255 738 1066 Parts 95 | . 15 35 45 Haulers Intercepted 3 | . 1 1 1 Recyclers Shooed . | . . . . Parts Field Recycled . | . . . . Retrieved Matter . | . . . . Parts Self-Destructed . | . . . . Prevented . | . . . . Kills | -11 -10 -9 -9 ------- Run | Scr Mat Mat Sto Combat Hostiles Destroyed 41 | . 4 15 22 Melee 20 | . 2 5 13 Guns 2 | . 2 . . AOE 4 | . . 4 . Classes Destroyed 11 | . 3 6 2 Worker 2 | . . 2 . Builder 1 | . . 1 . Hauler 3 | . 1 1 1 Recycler 2 | . . 1 1 Operator 1 | . . 1 . Watcher 4 | . 1 1 2 Swarmer 9 | . . 6 3 Grunt 20 | . 4 6 10 Brawler 1 | . . . 1 Duelist 1 | . . . 1 Sentry 10 | . . 3 7 Best Kill Streak 5 | . 3 5 4 Combat Bots Only 5 | . 2 5 3 Max Kills in Single Turn 4 | . 1 4 1 Gunslinging . | . . . . Exploded 3 | . . 3 . Melee 1 | . 1 1 1 Uniques/NPCs Destroyed . | . . . . Combat | -11 -10 -9 -9 -------- Run | Scr Mat Mat Sto Damage Taken 1777 | . 128 588 1061 Core 446 | . 42 86 318 Absorbed by Shields . | . . . . Core Remaining (%) 91 | 100 83 . . Volleys Fired 18 | . 10 7 1 Largest 2 | . 2 1 1 Hottest 40 | . 40 36 36 Shots Fired 28 | . 20 7 1 Gun 20 | . 20 . . Cannon . | . . . . Launcher 8 | . . 7 1 Special . | . . . . Kinetic 20 | . 20 . . Thermal . | . . . . Explosive . | . . . . Electromagnetic 8 | . . 7 1 Robot Hit Streak 11 | . 5 10 11 Robot Miss Streak 2 | . 2 . . Penetration Max . | . . . . Secondary Targets . | . . . . Shots Hit Robots 150 | . 25 53 72 Core Hits 45 | . 9 19 17 Critical Hits . | . . . . Critical Kills . | . . . . Critical Parts Destroyed . | . . . . Melee Attacks 151 | . 11 55 85 Impact 145 | . 11 55 79 Slashing 6 | . . . 6 Piercing . | . . . . Sneak Attacks 7 | . 1 2 4 Combat Hostiles . | . . . . Follow-up Attacks 18 | . 2 7 9 Damage Inflicted 4020 | . 417 1480 2123 Guns 119 | . 119 . . Cannons . | . . . . Explosions 479 | . . 450 29 Melee 3422 | . 298 1030 2094 Ramming . | . . . . Kinetic 119 | . 119 . . Thermal 18 | . . 18 . Explosive . | . . . . Electromagnetic 461 | . . 432 29 Impact 3322 | . 298 1030 1994 Slashing 100 | . . . 100 Piercing . | . . . . Highest Corruption 1 | . . 1 1 Average Corruption 1 | . . 1 1 Corruption Purged . | . . . . Effects 6 | . . . 6 Message Errors 1 | . . . 1 Targeting Errors 5 | . . . 5 Overload Shots . | . . . . Overflow Damage 288 | . 22 52 214 Projectiles . | . . . . Explosions 3 | . . 3 . Melee 285 | . 22 49 214 Knockbacks 11 | . 1 3 7 Impact 11 | . 1 3 7 Kinetic . | . . . . Secondary . | . . . . Self-Inflicted Damage 11 | . . 7 4 Shots 2 | . . 1 1 Rammed . | . . . . Targets Rammed . | . . . . Kicked . | . . . . Crushed . | . . . . Highest Temperature 25 | . 25 . . Average Temperature 10 | . 10 . . Received Heat Transfer 825 | . 93 201 531 Siege Activations . | . . . . Robots Corrupted 1 | . . . 1 Combat Hostiles 1 | . . . 1 Parts Fried 22 | . 1 7 14 Impact Corruptions 28 | . 2 8 18 Robots Melted . | . . . . Combat Hostiles . | . . . . Parts Melted . | . . . . Heat Transferred 50 | . . 50 . Parts Sabotaged . | . . . . Parts Stolen . | . . . . Parts Stripped . | . . . . Power Chain Reactions 2 | . . 2 . Missiles Intercepted . | . . . . Alert | -11 -10 -9 -9 ------- Run | Scr Mat Mat Sto Peak Influence 578 | . 164 360 578 Average Influence 230 | . 46 172 376 Maximum Alert Level 2 | . . 1 2 Low Security (%) 52 | . . . . Level 1 26 | . . . . Level 2 21 | . . . . Level 3 . | . . . . Level 4 . | . . . . Level 5 . | . . . . High Security . | . . . . Max Security . | . . . . Squads Dispatched 4 | . . 3 1 Investigation 1 | . . 1 . Extermination . | . . . . Reinforcement 3 | . . 2 1 Assault . | . . . . Garrison . | . . . . Intercept . | . . . . Construction Impeded . | . . . . Haulers Reinforced . | . . . . Stealth | -11 -10 -9 -9 --------- Run | Scr Mat Mat Sto Distress Signals 2 | . . 1 1 Communications Jammed . | . . . . Distress Signals . | . . . . Times Spotted 58 | . 5 27 26 Peak Tracking Total 6 | . 2 6 4 Tactical Retreats 3 | . . 2 1 Traps | -11 -10 -9 -9 ------- Run | Scr Mat Mat Sto Traps Triggered 1 | . . 1 . Indirectly 1 | . . 1 . Trap Hack Attempts . | . . . . Triggered . | . . . . Disarmed . | . . . . Reprogrammed 1 | . . . 1 Reused . | . . . . Traps Extracted . | . . . . Installed . | . . . . Triggered . | . . . . Machines | -11 -10 -9 -9 ---------- Run | Scr Mat Mat Sto Machines Disabled 3 | . . 1 2 Max in Single Turn 1 | . . 1 1 Garrison Access 1 | . . . 1 Machines Sabotaged . | . . . . Garrisons Compromised . | . . . . Overloaded Fab Kills . | . . . . Fab Network Shutdowns . | . . . . Hacking | -11 -10 -9 -9 --------- Run | Scr Mat Mat Sto Machines Accessed 10 | . 2 3 5 Terminals 9 | . 2 3 4 Fabricators . | . . . . Repair Stations . | . . . . Recycling Units . | . . . . Scanalyzers . | . . . . Garrison Access 1 | . . . 1 Total Hacks 20 | . 7 6 7 Successful 12 | . 2 4 6 Failed 8 | . 5 2 1 Catastrophic . | . . . . Database Lockouts . | . . . . Manual 6 | . 5 1 . Terminals 18 | . 7 6 5 Fabricators . | . . . . Repair Stations . | . . . . Recycling Units . | . . . . Scanalyzers . | . . . . Garrison Access 2 | . . . 2 Terminal Hacks 11 | . 2 4 5 Open Door 2 | . . . 2 Branch Access Points 1 | . . . 1 Emergency Access Points 1 | . . . 1 Terminal Index 1 | . . 1 . Unreport Threat 1 | . 1 . . Locate Traps 2 | . 1 1 . Reprogram Traps 1 | . . . 1 Recall Investigation 1 | . . 1 . Recall Reinforcements 1 | . . 1 . Fabricator Hacks . | . . . . Repair Station Hacks . | . . . . Recycling Unit Hacks . | . . . . Scanalyzer . | . . . . Garrison Access Hacks 1 | . . . 1 Seal Access 1 | . . . 1 Unauthorized Hacks . | . . . . Terminals . | . . . . Fabricators . | . . . . Repair Stations . | . . . . Recycling Units . | . . . . Scanalyzers . | . . . . Garrison Access . | . . . . Data Cores Recovered . | . . . . Used . | . . . . Hacking Detections 8 | . 2 3 3 Full Trace Events . | . . . . Feedback Events . | . . . . Feedback Blocked . | . . . . Robot Schematics Acquired . | . . . . Robots Built . | . . . . Matter . | . . . . Time . | . . . . Total Robot Build Rating . | . . . . Part Schematics Acquired . | . . . . Parts Built . | . . . . Matter . | . . . . Time . | . . . . Total Part Build Rating . | . . . . Parts Repaired . | . . . . Time . | . . . . Parts Recycled . | . . . . Recycled Matter . | . . . . Retrieved Matter . | . . . . Retrieved Components . | . . . . Parts Scanalyzed . | . . . . Part Schematics Acquired . | . . . . Parts Damaged . | . . . . Bothacking | -11 -10 -9 -9 ------------ Run | Scr Mat Mat Sto Used RIF Installer . | . . . . Robots Hacked . | . . . . Non-combat . | . . . . Combat . | . . . . Robot Hacks Applied . | . . . . Relay Couplers Released . | . . . . Robots Rewired . | . . . . Allies Hacked . | . . . . Hacks Repelled . | . . . . Allies | -11 -10 -9 -9 -------- Run | Scr Mat Mat Sto Total Allies . | . . . . Largest Group . | . . . . Highest-Rated Group . | . . . . Highest-Rated Ally . | . . . . Total Orders . | . . . . Ally Attacks . | . . . . Total Damage . | . . . . Kills . | . . . . Allies Corrupted . | . . . . Allies Melted . | . . . . Intel | -11 -10 -9 -9 ------- Run | Scr Mat Mat Sto Robot Analysis Total . | . . . . Derelict Logs Recovered . | . . . . Drone Launches . | . . . . Drone Recoveries . | . . . . Exploration | -11 -10 -9 -9 ------------- Run | Scr Mat Mat Sto Turns Passed 1527 | 55 273 552 647 Spaces Moved 837 | 40 178 299 320 Core 21 | 4 . 8 9 Treads 42 | . . . 42 Legs 774 | 36 178 291 269 Wheels . | . . . . Hover . | . . . . Flight . | . . . . Fastest Speed 50 | 50 120 120 100 Average Speed 125 | 113 120 129 127 Slowest Speed 350 | 120 120 350 160 Overloaded Moves . | . . . . Propulsion Burnouts . | . . . . Robots Hopped . | . . . . Cave-ins Triggered . | . . . . Exploration Rate (%) 27 | 4 27 28 51 Regions Visited 3 Branch Regions 1 Pre-discovered Areas . | . . . . Known Exits Taken 1 | . 1 . . Unknown Exits Taken 2 | 1 . 1 . Scrap Searched . | . . . . Spaces Dug . | . . . . Terrain Destroyed 3 | . . 3 . Melee . | . . . . Projectile . | . . . . AOE 3 | . . 3 . Actions | -11 -10 -9 -9 --------- Run | Scr Mat Mat Sto Total 1083 | 47 207 383 446 Wait 38 | . 1 10 27 Move 834 | 39 177 298 320 Hop . | . . . . Pick Up 4 | 2 . 2 . Fast Attach 26 | 6 4 7 9 Attach 2 | . . 2 . Detach 6 | . 3 3 . Swap 14 | . 2 6 6 Drop 15 | . 1 3 11 Fire 18 | . 10 7 1 Melee 126 | . 9 45 72 Ram . | . . . . Kick . | . . . . Crush . | . . . . Escape Stasis . | . . . . Rewire . | . . . . Trap . | . . . . Miscellaneous . | . . . . Route ------- -11/Scrapyard -10/Materials -9/Materials (discovered 2 exits: [*Min] / *Sto) -9/Storage (discovered 1 exit: Rec) History --------- Turn | Location | Event 6 | -11/Scrapyard | Discovered new exit (range 16) 56 | -11/Scrapyard | Entered Materials 260 | -10/Materials | Discovered new exit (range 13) 328 | -10/Materials | Identified exit to Materials 329 | -10/Materials | Entered another Materials area 329 | -9/Materials | Evolved 2 slots: Propulsion x1, Utility x1 597 | -9/Materials | Build established: Hacker-Mutant 840 | -9/Materials | Discovered new exit (range 12) 858 | -9/Materials | Discovered new exit (range 8) 881 | -9/Materials | Entered Storage 1060 | -9/Storage | Identified exit to Recycling 1282 | -9/Storage | Core integrity fell below 50% 1493 | -9/Storage | Core integrity fell below 20% 1528 | -9/Storage | Destroyed by G-34 Mercenary with Small Laser Last Messages --------------- 01511_ Terminal disabled. 01511_ K-01 Serf collects debris. 01512_ Destroyed Heat Sink. 01512_ Y-45 Defender system corrupted by crushing effect. 01512_ U-05 Engineer lays Concrete. 01513_ Y-45 Defender system terminally corrupted. 01513_ U-05 Engineer lays Concrete. 01514_ K-01 Serf collects debris. 01515_ U-05 Engineer lays Concrete. 01517_ Dropped Katana. 01517_ U-05 Engineer lays Concrete. 01517_ K-01 Serf collects debris. 01518_ Acquired Hammer. 01518_ U-05 Engineer lays Concrete. 01521_ K-01 Serf collects debris. 01522_ U-05 Engineer lays Concrete. 01523_ Shock Maul destroyed. 01524_ U-05 Engineer lays Concrete. 01524_ K-01 Serf collects debris. 01525_ U-05 Engineer lays Concrete. Map ----- +----------------------------------------------------+ | ????????# ######## #???# % #????????? | | ????????? #???# #????????? | | ????????????????# ^ =#???# ######???? | | ????????????????# = ##### ##"T"##### | | ????????????????# ^=%= % | | ????????????????#######%##### # | | ??????????????????????#%#???# "# | | ??????????????????????# #???# % % !! T# | | ??????????????????????# #####+## !! "# | | ??????????????????????# ## # # | | ??????????????????????# ## " " # % | | ??????????????????????# ## "Y" #%#####+##+# | | ??????????????????????# ## """ # #?# # | | ??????????????????????# + #!#?# # | | ??????????????????????#+###### # #?# # | | ??????????????????????# ???### #?# # | | ????????+?????????????#"""r #?# #?# # | | ????????# ????????????#""" #?# #?# # | | ????????# ???????????#""" ! #?# #?######## | | ????????# ???######### ### ##???????? | | ????????# ### # # # [## #???????? | | ????????# # # # # ####### #???????? | | ????????# r # #?????# #???????? | | ????????# # k # #?## ##???????? | | ??????" # /! %uu # #### #????????? | | ??????# ; % @ # + #????????? | | ??????### = g %# # #????????? | | ????????# # ####### #????????? | | ????????# # "T + #????????? | | ????????# ?# """ # #????????? | | ????????# ??######/#### #????????? | | ????????#????????# #??#! "Y" +????????? | | ?????????????????###??# """ #????????? | | ??????????????????????# %#????????? | | ????????????????????? / ??????? | | ???????????????????? # #####+## ?????? | | ??????????????????? # #??????? #????? | | ?????????????????? ?+ ???????? +????? | | ????????????????? ?##????????######????? | | ?????????????????###??????????????????????? | | ??????????????????????????????????????????? | | ??????????????????????????????????????????? | | | | | | | | | | | | | | | | | +----------------------------------------------------+ Best States ------------- Heat Dissipation 28 Coolant Potential 50 Energy Generation 14 Energy Capacity 280 Matter Stores 300 Matter Capacity 300 Sight Range 16 Terrain Scan Density 10 Resistance: KI 20 Resistance: TH 20 Resistance: EX 20 Resistance: EM 20 Resistance: I 20 Resistance: S 20 Resistance: P 20 Evasion (%) 40 Recoil Reduction 2 Offensive Hacking 20 Item Schematics ----------------- None Robot Schematics ------------------ None Fabricated ------------ Nothing Alien Tech Used ----------------- None Achievements -------------- None Challenges ------------ None Game ------ Seed ForceBladeKit Manual? 0 Play Time 00:18:11 Cumulative 28.6 hours Start 2019.11.18 @ 17:40:48 End 2019.11.20 @ 16:35:42 Sessions 3 Manual Loads 0 Difficulty Adventurer Special Mode None Game No. 11 Rogue -11 Adventurer 11 Explorer 0 Win Type - Total 1 Types 0/0/1/0/0/0/0 Lore% 24 Gallery% 38 Achievement% 32 Wizard Run 0 Options --------- ASCII 0 Keyboard 1 Movement Vi Keybinds 0 Fullscreen 1 Font 18/SmallcapsGlow Map View 76x50 Tactical HUD 1 Map Filters NONE Filters NONE Steam 0 RUN: 67296948-ee93-4c76-a434-815ce223627e